[Event "Late-Titled-Tuesday-Blitz-October-03-2023"]
[Site "Chess.com"]
[Date "2023.10.03"]
[Round "5"]
[White "MalcolmPein"]
[Black "Leebit02"]
[Result "0-1"]
[WhiteElo "2284"]
[BlackElo "2487"]
[TimeControl "180+1"]
[EndTime "14:53:36 PDT"]
[Termination "Leebit02 won on time"]

1. d4 {[%clk 0:02:52.2]} 1... d5 {[%clk 0:02:59.6]} 2. Nf3 {[%clk 0:02:51.6]}
2... Nf6 {[%clk 0:02:58.8]} 3. c4 {[%clk 0:02:51.9]} 3... e6 {[%clk 0:02:58.6]}
4. Nc3 {[%clk 0:02:51.5]} 4... c6 {[%clk 0:02:58.2]} 5. e3 {[%clk 0:02:47.9]}
5... Nbd7 {[%clk 0:02:57.5]} 6. Qc2 {[%clk 0:02:48.2]} 6... Bd6 {[%clk
0:02:57.3]} 7. Bd2 {[%clk 0:02:47.8]} 7... O-O {[%clk 0:02:42]} 8. Rg1 {[%clk
0:02:43.2]} 8... e5 {[%clk 0:02:28.7]} 9. cxd5 {[%clk 0:02:38.2]} 9... cxd5
{[%clk 0:02:28.7]} 10. Nb5 {[%clk 0:02:34.4]} 10... Bb8 {[%clk 0:02:28.7]} 11.
Bb4 {[%clk 0:02:33.6]} 11... Re8 {[%clk 0:02:27.2]} 12. Nd6 {[%clk 0:02:31]}
12... Bxd6 {[%clk 0:02:19.7]} 13. Bxd6 {[%clk 0:02:30.5]} 13... exd4 {[%clk
0:02:19.1]} 14. Nxd4 {[%clk 0:02:27.8]} 14... Qb6 {[%clk 0:02:15.6]} 15. Nb5
{[%clk 0:02:13.4]} 15... Ne4 {[%clk 0:01:33.3]} 16. Bc7 {[%clk 0:01:49.6]} 16...
Qf6 {[%clk 0:01:27.4]} 17. f3 {[%clk 0:01:03.2]} 17... a6 {[%clk 0:01:18.1]} 18.
Nd4 {[%clk 0:00:40.9]} 18... Nd6 {[%clk 0:01:02.6]} 19. Kf2 {[%clk 0:00:39.7]}
19... Ne5 {[%clk 0:00:58.6]} 20. Bxd6 {[%clk 0:00:36.2]} 20... Qxd6 {[%clk
0:00:55.9]} 21. Rc1 {[%clk 0:00:36.5]} 21... Bd7 {[%clk 0:00:48.9]} 22. Bd3
{[%clk 0:00:29]} 22... g6 {[%clk 0:00:37.8]} 23. Rgd1 {[%clk 0:00:21.6]} 23...
Rac8 {[%clk 0:00:26.1]} 24. Qb3 {[%clk 0:00:21.8]} 24... b5 {[%clk 0:00:25.6]}
25. Kg1 {[%clk 0:00:20.2]} 25... Qb6 {[%clk 0:00:24.6]} 26. a4 {[%clk
0:00:19.9]} 26... Nc4 {[%clk 0:00:21.9]} 27. axb5 {[%clk 0:00:18.4]} 27... Nxe3
{[%clk 0:00:20.8]} 28. Rxc8 {[%clk 0:00:11.9]} 28... Rxc8 {[%clk 0:00:20.9]} 29.
Bf1 {[%clk 0:00:11.7]} 29... Nxd1 {[%clk 0:00:20.4]} 30. Qxd5 {[%clk 0:00:10.8]}
30... Be6 {[%clk 0:00:18.4]} 0-1

[Event "Late-Titled-Tuesday-Blitz-October-03-2023"]
[Site "Chess.com"]
[Date "2023.10.03"]
[Round "5"]
[White "bazar-wokzal"]
[Black "AjedrezenMadrid"]
[Result "1-0"]
[WhiteElo "2590"]
[BlackElo "2462"]
[TimeControl "180+1"]
[EndTime "14:53:40 PDT"]
[Termination "bazar-wokzal won on time"]

1. e4 {[%clk 0:03:00.9]} 1... c5 {[%clk 0:02:59.9]} 2. c3 {[%clk 0:03:00.7]}
2... d5 {[%clk 0:02:58.4]} 3. exd5 {[%clk 0:03:00.7]} 3... Nf6 {[%clk
0:02:58.9]} 4. Bb5+ {[%clk 0:03:00.1]} 4... Nbd7 {[%clk 0:02:58.2]} 5. c4 {[%clk
0:02:59.7]} 5... a6 {[%clk 0:02:58.3]} 6. Bxd7+ {[%clk 0:02:59.2]} 6... Qxd7
{[%clk 0:02:57.7]} 7. Nf3 {[%clk 0:02:59.5]} 7... b5 {[%clk 0:02:58.2]} 8. d3
{[%clk 0:02:59.4]} 8... g6 {[%clk 0:02:56.5]} 9. O-O {[%clk 0:02:59]} 9... Bg7
{[%clk 0:02:57.1]} 10. Re1 {[%clk 0:02:58.8]} 10... O-O {[%clk 0:02:57.1]} 11.
Nc3 {[%clk 0:02:57.5]} 11... e6 {[%clk 0:02:39.3]} 12. dxe6 {[%clk 0:02:54.6]}
12... fxe6 {[%clk 0:02:39.1]} 13. Bg5 {[%clk 0:02:45.8]} 13... b4 {[%clk
0:02:39.5]} 14. Bxf6 {[%clk 0:02:15.1]} 14... Bxf6 {[%clk 0:02:38.9]} 15. Ne4
{[%clk 0:02:15]} 15... Bxb2 {[%clk 0:02:39.1]} 16. Nxc5 {[%clk 0:02:13.9]} 16...
Qa7 {[%clk 0:02:34.9]} 17. Ne4 {[%clk 0:02:03.8]} 17... Bxa1 {[%clk 0:02:31.6]}
18. Qxa1 {[%clk 0:02:03]} 18... Qg7 {[%clk 0:02:32.5]} 19. Ne5 {[%clk
0:01:56.1]} 19... Bb7 {[%clk 0:02:30.6]} 20. Nc5 {[%clk 0:01:50.6]} 20... Rae8
{[%clk 0:02:20.6]} 21. Qb2 {[%clk 0:01:37.5]} 21... a5 {[%clk 0:02:20.5]} 22. a3
{[%clk 0:01:37.5]} 22... bxa3 {[%clk 0:02:10.7]} 23. Qxa3 {[%clk 0:01:13.2]}
23... Qf6 {[%clk 0:01:43.7]} 24. f3 {[%clk 0:01:06.6]} 24... Qh4 {[%clk
0:01:43.3]} 25. Re2 {[%clk 0:00:36.9]} 25... Qd4+ {[%clk 0:01:42.3]} 26. Kf1
{[%clk 0:00:37.2]} 26... Ba8 {[%clk 0:01:30.7]} 27. Qxa5 {[%clk 0:00:35.6]}
27... Rb8 {[%clk 0:01:28.5]} 28. Nxe6 {[%clk 0:00:24.5]} 28... Rb1+ {[%clk
0:01:18.6]} 29. Re1 {[%clk 0:00:24.9]} 29... Rfb8 {[%clk 0:01:07.6]} 30. Nxd4
{[%clk 0:00:21.3]} 1-0

[Event "Late-Titled-Tuesday-Blitz-October-03-2023"]
[Site "Chess.com"]
[Date "2023.10.03"]
[Round "5"]
[White "Hikaru"]
[Black "GMBenjaminBok"]
[Result "1-0"]
[WhiteElo "3276"]
[BlackElo "2985"]
[TimeControl "180+1"]
[EndTime "14:53:41 PDT"]
[Termination "Hikaru won on time"]

1. e4 {[%clk 0:03:00.9]} 1... c5 {[%clk 0:02:59.5]} 2. Nf3 {[%clk 0:02:58.5]}
2... d6 {[%clk 0:02:59.6]} 3. Bc4 {[%clk 0:02:58.3]} 3... Nf6 {[%clk 0:02:59.1]}
4. d3 {[%clk 0:02:58.5]} 4... e6 {[%clk 0:02:58.2]} 5. Bb3 {[%clk 0:02:58.1]}
5... Be7 {[%clk 0:02:55.4]} 6. O-O {[%clk 0:02:57.7]} 6... O-O {[%clk
0:02:55.2]} 7. c3 {[%clk 0:02:57]} 7... b6 {[%clk 0:02:47.9]} 8. Re1 {[%clk
0:02:56.4]} 8... Bb7 {[%clk 0:02:48.1]} 9. Nbd2 {[%clk 0:02:56.8]} 9... Nbd7
{[%clk 0:02:46.6]} 10. Nf1 {[%clk 0:02:57]} 10... Re8 {[%clk 0:02:45.1]} 11. Ng3
{[%clk 0:02:56.5]} 11... Bf8 {[%clk 0:02:43]} 12. d4 {[%clk 0:02:54.2]} 12...
Qc7 {[%clk 0:02:40.2]} 13. Bc2 {[%clk 0:02:50]} 13... g6 {[%clk 0:02:25.4]} 14.
h3 {[%clk 0:02:17.9]} 14... Bg7 {[%clk 0:02:23.2]} 15. Be3 {[%clk 0:02:17.2]}
15... e5 {[%clk 0:02:18.4]} 16. d5 {[%clk 0:02:15.9]} 16... c4 {[%clk
0:02:18.6]} 17. Nd2 {[%clk 0:02:10.6]} 17... b5 {[%clk 0:02:16.4]} 18. a4 {[%clk
0:02:10.9]} 18... a6 {[%clk 0:02:14]} 19. Qe2 {[%clk 0:02:04.1]} 19... Nc5
{[%clk 0:02:11.9]} 20. Ra3 {[%clk 0:02:02.2]} 20... Nfd7 {[%clk 0:01:51.6]} 21.
Rea1 {[%clk 0:02:01.8]} 21... Nb6 {[%clk 0:01:43.8]} 22. axb5 {[%clk 0:01:58.5]}
22... axb5 {[%clk 0:01:44.7]} 23. Nb1 {[%clk 0:01:58.8]} 23... Nba4 {[%clk
0:01:00.2]} 24. R3a2 {[%clk 0:01:53]} 24... Reb8 {[%clk 0:00:58.2]} 25. Na3
{[%clk 0:01:49.4]} 25... Qd7 {[%clk 0:00:25.7]} 26. Qd1 {[%clk 0:01:49.4]} 26...
Bc8 {[%clk 0:00:19.5]} 27. Nxc4 {[%clk 0:00:46.8]} 27... Nxc3 {[%clk 0:00:18.5]}
28. bxc3 {[%clk 0:00:47.7]} 28... Rxa2 {[%clk 0:00:18.2]} 29. Rxa2 {[%clk
0:00:44]} 29... bxc4 {[%clk 0:00:18.7]} 30. Nf1 {[%clk 0:00:34.6]} 30... Qb5
{[%clk 0:00:17.2]} 31. Nd2 {[%clk 0:00:34.6]} 31... Bd7 {[%clk 0:00:17]} 32. Ra7
{[%clk 0:00:33.2]} 32... Be8 {[%clk 0:00:14.6]} 33. Qa1 {[%clk 0:00:27.6]} 33...
h5 {[%clk 0:00:13.8]} 34. Kh2 {[%clk 0:00:25.6]} 34... Nd3 {[%clk 0:00:13]} 35.
Ba4 {[%clk 0:00:21.8]} 35... Qb2 {[%clk 0:00:09.4]} 36. Bxe8 {[%clk 0:00:21.1]}
36... Rxe8 {[%clk 0:00:08.1]} 37. Nxc4 {[%clk 0:00:21]} 37... Qe2 {[%clk
0:00:05.3]} 38. Nxd6 {[%clk 0:00:20.6]} 38... Rf8 {[%clk 0:00:05.5]} 39. Ra2
{[%clk 0:00:20]} 1-0

[Event "Late-Titled-Tuesday-Blitz-October-03-2023"]
[Site "Chess.com"]
[Date "2023.10.03"]
[Round "5"]
[White "Beca95"]
[Black "ViIIagra"]
[Result "1-0"]
[WhiteElo "3004"]
[BlackElo "2932"]
[TimeControl "180+1"]
[EndTime "14:53:42 PDT"]
[Termination "Beca95 won on time"]

1. e4 {[%clk 0:02:56.4]} 1... c6 {[%clk 0:03:00.3]} 2. d4 {[%clk 0:02:51.8]}
2... d5 {[%clk 0:03:00.9]} 3. e5 {[%clk 0:02:51]} 3... Bf5 {[%clk 0:03:00.2]} 4.
h4 {[%clk 0:02:50.6]} 4... h5 {[%clk 0:02:57.4]} 5. Bd3 {[%clk 0:02:51.3]} 5...
Bxd3 {[%clk 0:02:56.9]} 6. Qxd3 {[%clk 0:02:52.2]} 6... Qa5+ {[%clk 0:02:57.5]}
7. Nd2 {[%clk 0:02:48.4]} 7... Qa6 {[%clk 0:02:57.5]} 8. c4 {[%clk 0:02:48]}
8... e6 {[%clk 0:02:57.5]} 9. Ne2 {[%clk 0:02:43.6]} 9... Bb4 {[%clk 0:02:51.6]}
10. b3 {[%clk 0:02:43]} 10... Nd7 {[%clk 0:02:51.4]} 11. O-O {[%clk 0:02:42.8]}
11... Ne7 {[%clk 0:02:48.3]} 12. Ng3 {[%clk 0:02:38.5]} 12... Rd8 {[%clk
0:02:38.6]} 13. Qc2 {[%clk 0:02:15.3]} 13... c5 {[%clk 0:02:02.2]} 14. cxd5
{[%clk 0:02:12.5]} 14... Nxd5 {[%clk 0:02:00.3]} 15. dxc5 {[%clk 0:01:43.9]}
15... Nxe5 {[%clk 0:01:44.4]} 16. Nde4 {[%clk 0:01:43.7]} 16... Qd3 {[%clk
0:01:27.7]} 17. Qb2 {[%clk 0:01:32]} 17... Bc3 {[%clk 0:01:08.8]} 18. Nxc3
{[%clk 0:01:31.2]} 18... Nxc3 {[%clk 0:01:09.7]} 19. Bg5 {[%clk 0:01:24.2]}
19... f6 {[%clk 0:01:09.4]} 20. Rac1 {[%clk 0:01:23.2]} 20... Nd5 {[%clk
0:00:52.7]} 21. Rfe1 {[%clk 0:01:22.7]} 21... Rc8 {[%clk 0:00:33.1]} 22. Rxe5
{[%clk 0:01:16]} 22... fxe5 {[%clk 0:00:34]} 23. Qxe5 {[%clk 0:01:16]} 23... Qg6
{[%clk 0:00:34.7]} 24. Qd6 {[%clk 0:00:51]} 24... Rf8 {[%clk 0:00:30.3]} 25. Re1
{[%clk 0:00:41.6]} 25... Kf7 {[%clk 0:00:28.6]} 26. Qd7+ {[%clk 0:00:39.9]}
26... Kg8 {[%clk 0:00:28.8]} 27. Rxe6 {[%clk 0:00:37.1]} 27... Qb1+ {[%clk
0:00:12.6]} 28. Kh2 {[%clk 0:00:36.4]} 28... Qd3 {[%clk 0:00:07.1]} 29. Rd6
{[%clk 0:00:16.3]} 29... Rxc5 {[%clk 0:00:05.9]} 30. Nxh5 {[%clk 0:00:15.2]}
30... Rf7 {[%clk 0:00:02.8]} 31. Qe8+ {[%clk 0:00:15.2]} 31... Rf8 {[%clk
0:00:03.4]} 32. Qe6+ {[%clk 0:00:14.9]} 32... Kh7 {[%clk 0:00:03]} 33. Nxg7
{[%clk 0:00:12.7]} 33... Kxg7 {[%clk 0:00:01.2]} 34. Rd7+ {[%clk 0:00:12.5]} 1-0

[Event "Late-Titled-Tuesday-Blitz-October-03-2023"]
[Site "Chess.com"]
[Date "2023.10.03"]
[Round "5"]
[White "RIPOL"]
[Black "Danishcrown"]
[Result "1-0"]
[WhiteElo "2436"]
[BlackElo "2148"]
[TimeControl "180+1"]
[EndTime "14:53:43 PDT"]
[Termination "RIPOL won on time"]

1. d4 {[%clk 0:03:00.9]} 1... Nf6 {[%clk 0:02:58.1]} 2. Bg5 {[%clk 0:03:00.5]}
2... h6 {[%clk 0:02:57.6]} 3. Bxf6 {[%clk 0:02:59.9]} 3... exf6 {[%clk
0:02:58.5]} 4. e3 {[%clk 0:02:58.1]} 4... d5 {[%clk 0:02:53.3]} 5. c4 {[%clk
0:02:56.4]} 5... Bb4+ {[%clk 0:02:46.4]} 6. Nc3 {[%clk 0:02:55.5]} 6... O-O
{[%clk 0:01:54]} 7. cxd5 {[%clk 0:02:43.3]} 7... Qxd5 {[%clk 0:01:49.4]} 8. Ne2
{[%clk 0:02:43.7]} 8... c5 {[%clk 0:01:39.5]} 9. a3 {[%clk 0:02:42.5]} 9...
Bxc3+ {[%clk 0:01:36.7]} 10. Nxc3 {[%clk 0:02:41.4]} 10... Qc6 {[%clk
0:01:10.9]} 11. dxc5 {[%clk 0:02:38]} 11... Qxc5 {[%clk 0:01:09.5]} 12. Qd4
{[%clk 0:02:21.6]} 12... Qxd4 {[%clk 0:01:08.3]} 13. exd4 {[%clk 0:02:21.2]}
13... Re8+ {[%clk 0:01:02]} 14. Be2 {[%clk 0:02:20.4]} 14... Nc6 {[%clk
0:01:01.3]} 15. Rd1 {[%clk 0:02:18.2]} 15... Bf5 {[%clk 0:00:51.8]} 16. O-O
{[%clk 0:02:14.7]} 16... Rad8 {[%clk 0:00:48]} 17. Bb5 {[%clk 0:02:05.6]} 17...
Bd7 {[%clk 0:00:43]} 18. Rd2 {[%clk 0:01:52.1]} 18... a6 {[%clk 0:00:39.9]} 19.
Ba4 {[%clk 0:01:44.3]} 19... b5 {[%clk 0:00:36.4]} 20. Bb3 {[%clk 0:01:41.4]}
20... Bf5 {[%clk 0:00:29.1]} 21. d5 {[%clk 0:01:24.2]} 21... Na5 {[%clk
0:00:25.5]} 22. Ba2 {[%clk 0:01:23.8]} 22... Nb7 {[%clk 0:00:23.1]} 23. Rfd1
{[%clk 0:01:20.4]} 23... Nd6 {[%clk 0:00:22.4]} 24. f3 {[%clk 0:01:20.2]} 24...
Kf8 {[%clk 0:00:20.5]} 25. Ne2 {[%clk 0:01:19]} 25... Bd7 {[%clk 0:00:16.2]} 26.
Nd4 {[%clk 0:01:17.9]} 26... Rc8 {[%clk 0:00:16.5]} 27. Kf2 {[%clk 0:01:11.5]}
27... Rc5 {[%clk 0:00:12.9]} 28. Ne2 {[%clk 0:01:09.9]} 28... Rec8 {[%clk
0:00:12.3]} 29. Ng3 {[%clk 0:01:03.5]} 29... f5 {[%clk 0:00:07.1]} 30. h4 {[%clk
0:00:59.1]} 30... Rc1 {[%clk 0:00:06.5]} 31. Rxc1 {[%clk 0:00:52.6]} 31... Rxc1
{[%clk 0:00:07.4]} 32. Ne2 {[%clk 0:00:52.3]} 32... Rc5 {[%clk 0:00:04.9]} 33.
b4 {[%clk 0:00:49.4]} 33... Rc8 {[%clk 0:00:03.7]} 34. Nd4 {[%clk 0:00:48.4]}
34... Ke7 {[%clk 0:00:03.4]} 35. Nb3 {[%clk 0:00:46.5]} 35... Rc3 {[%clk
0:00:01.9]} 36. Re2+ {[%clk 0:00:45.4]} 36... Kd8 {[%clk 0:00:01.9]} 37. Nc5
{[%clk 0:00:45.1]} 37... Bc8 {[%clk 0:00:02.4]} 38. Re3 {[%clk 0:00:42.6]} 38...
Rc2+ {[%clk 0:00:02.6]} 39. Re2 {[%clk 0:00:42.9]} 39... Rc3 {[%clk 0:00:03.1]}
40. Bb3 {[%clk 0:00:42.4]} 40... Nb7 {[%clk 0:00:02.1]} 41. Nxa6 {[%clk
0:00:38.7]} 41... Rxb3 {[%clk 0:00:01.2]} 42. Nb8 {[%clk 0:00:37.2]} 1-0

[Event "Late-Titled-Tuesday-Blitz-October-03-2023"]
[Site "Chess.com"]
[Date "2023.10.03"]
[Round "5"]
[White "akretchetov"]
[Black "KafkaesqueKnight"]
[Result "1/2-1/2"]
[WhiteElo "2510"]
[BlackElo "2345"]
[TimeControl "180+1"]
[EndTime "14:53:44 PDT"]
[Termination "Game drawn by repetition"]

1. Nf3 {[%clk 0:03:00.9]} 1... Nf6 {[%clk 0:02:59.9]} 2. c4 {[%clk 0:03:00.6]}
2... g6 {[%clk 0:02:58.7]} 3. Nc3 {[%clk 0:03:00.4]} 3... Bg7 {[%clk 0:02:59.3]}
4. e4 {[%clk 0:03:00.6]} 4... O-O {[%clk 0:02:59.9]} 5. d4 {[%clk 0:03:00.7]}
5... d6 {[%clk 0:02:59.8]} 6. Be2 {[%clk 0:03:00.3]} 6... e5 {[%clk 0:03:00.3]}
7. d5 {[%clk 0:03:00.2]} 7... a5 {[%clk 0:02:56.5]} 8. Bg5 {[%clk 0:02:59.3]}
8... h6 {[%clk 0:02:55]} 9. Bh4 {[%clk 0:02:57.9]} 9... Na6 {[%clk 0:02:54.6]}
10. Nd2 {[%clk 0:02:52.8]} 10... Nc5 {[%clk 0:02:50.9]} 11. f3 {[%clk
0:02:47.6]} 11... Bd7 {[%clk 0:02:42.3]} 12. Bf2 {[%clk 0:02:44.9]} 12... c6
{[%clk 0:02:37.1]} 13. O-O {[%clk 0:02:42.3]} 13... Nh5 {[%clk 0:02:35]} 14. Re1
{[%clk 0:02:36.4]} 14... Nf4 {[%clk 0:02:20.9]} 15. Nf1 {[%clk 0:02:36.2]} 15...
Qe7 {[%clk 0:02:05.3]} 16. Be3 {[%clk 0:02:28.7]} 16... f5 {[%clk 0:01:45.8]}
17. exf5 {[%clk 0:02:17]} 17... gxf5 {[%clk 0:01:42.5]} 18. Ng3 {[%clk
0:02:14.5]} 18... Nxe2+ {[%clk 0:01:21.5]} 19. Ngxe2 {[%clk 0:02:13.6]} 19...
Na6 {[%clk 0:01:14.2]} 20. f4 {[%clk 0:02:12.7]} 20... Rad8 {[%clk 0:00:59]} 21.
Qd2 {[%clk 0:02:12.2]} 21... Kh7 {[%clk 0:00:57.2]} 22. Rad1 {[%clk 0:02:08.2]}
22... c5 {[%clk 0:00:50.9]} 23. Ng3 {[%clk 0:02:02.7]} 23... e4 {[%clk
0:00:47.7]} 24. a3 {[%clk 0:01:57.6]} 24... Qh4 {[%clk 0:00:36.3]} 25. Qe2
{[%clk 0:01:53.1]} 25... Be8 {[%clk 0:00:29.5]} 26. Qf2 {[%clk 0:01:45.5]} 26...
Nc7 {[%clk 0:00:24.5]} 27. Ngxe4 {[%clk 0:01:45.1]} 27... Qxf2+ {[%clk
0:00:16.7]} 28. Nxf2 {[%clk 0:01:45.1]} 28... b6 {[%clk 0:00:15.7]} 29. Bd2
{[%clk 0:01:35.9]} 29... Bh5 {[%clk 0:00:15.8]} 30. Rc1 {[%clk 0:01:34.1]} 30...
Rde8 {[%clk 0:00:15.3]} 31. Kf1 {[%clk 0:01:32.7]} 31... Bd4 {[%clk 0:00:14.5]}
32. a4 {[%clk 0:01:16.4]} 32... Kg7 {[%clk 0:00:13.5]} 33. b3 {[%clk 0:01:12.8]}
33... Kf7 {[%clk 0:00:11.9]} 34. Ne2 {[%clk 0:01:12.4]} 34... Bb2 {[%clk
0:00:10.5]} 35. Rb1 {[%clk 0:01:11.2]} 35... Bf6 {[%clk 0:00:10.7]} 36. Ng3
{[%clk 0:01:08.2]} 36... Bg6 {[%clk 0:00:08.3]} 37. Nd1 {[%clk 0:01:05]} 37...
Bd4 {[%clk 0:00:07.3]} 38. Ne3 {[%clk 0:01:03.1]} 38... Kf6 {[%clk 0:00:07.4]}
39. Nc2 {[%clk 0:00:59.8]} 39... Na6 {[%clk 0:00:06.2]} 40. Nxd4 {[%clk
0:00:55.7]} 40... cxd4 {[%clk 0:00:07.1]} 41. Rbd1 {[%clk 0:00:55.6]} 41... Nc5
{[%clk 0:00:07.3]} 42. Rb1 {[%clk 0:00:52.8]} 42... Nd3 {[%clk 0:00:06]} 43.
Rxe8 {[%clk 0:00:50.7]} 43... Rxe8 {[%clk 0:00:06.9]} 44. Ne2 {[%clk 0:00:49.1]}
44... Re4 {[%clk 0:00:05]} 45. Ng3 {[%clk 0:00:40.6]} 45... Re8 {[%clk
0:00:04.4]} 46. Rd1 {[%clk 0:00:39.4]} 46... Nc5 {[%clk 0:00:04.1]} 47. Rb1
{[%clk 0:00:38.4]} 47... Nd3 {[%clk 0:00:04]} 1/2-1/2

[Event "Late-Titled-Tuesday-Blitz-October-03-2023"]
[Site "Chess.com"]
[Date "2023.10.03"]
[Round "5"]
[White "K_alena13"]
[Black "NovikovaGalina"]
[Result "0-1"]
[WhiteElo "2105"]
[BlackElo "2433"]
[TimeControl "180+1"]
[EndTime "14:53:44 PDT"]
[Termination "NovikovaGalina won on time"]

1. Nf3 {[%clk 0:03:00.9]} 1... e6 {[%clk 0:02:59]} 2. c4 {[%clk 0:02:58.4]} 2...
f5 {[%clk 0:02:59.2]} 3. Nc3 {[%clk 0:02:54.5]} 3... Nf6 {[%clk 0:02:59.6]} 4.
g3 {[%clk 0:02:53.8]} 4... d6 {[%clk 0:02:59.3]} 5. Bg2 {[%clk 0:02:54.1]} 5...
e5 {[%clk 0:02:59.8]} 6. d3 {[%clk 0:02:53]} 6... Be7 {[%clk 0:03:00.1]} 7. O-O
{[%clk 0:02:51.9]} 7... O-O {[%clk 0:03:00.6]} 8. e4 {[%clk 0:02:45.3]} 8... Nc6
{[%clk 0:02:59]} 9. Bg5 {[%clk 0:02:37.2]} 9... Qe8 {[%clk 0:02:53.8]} 10. Bxf6
{[%clk 0:02:25.6]} 10... Bxf6 {[%clk 0:02:54.7]} 11. Nd5 {[%clk 0:02:26]} 11...
Bd8 {[%clk 0:02:54.9]} 12. Re1 {[%clk 0:02:16.5]} 12... f4 {[%clk 0:02:52.9]}
13. d4 {[%clk 0:02:14]} 13... fxg3 {[%clk 0:02:50.9]} 14. fxg3 {[%clk
0:02:01.8]} 14... Bg4 {[%clk 0:02:51.1]} 15. dxe5 {[%clk 0:01:54.1]} 15... Nxe5
{[%clk 0:02:52]} 16. Rf1 {[%clk 0:01:50.3]} 16... c6 {[%clk 0:02:51.9]} 17. Nf4
{[%clk 0:01:47.6]} 17... Bb6+ {[%clk 0:02:51.3]} 18. Kh1 {[%clk 0:01:45.4]}
18... Nxf3 {[%clk 0:02:51.4]} 19. Bxf3 {[%clk 0:01:42.2]} 19... Bxf3+ {[%clk
0:02:51.6]} 20. Qxf3 {[%clk 0:01:09.8]} 20... Kh8 {[%clk 0:02:49.8]} 21. Qd3
{[%clk 0:01:00.9]} 21... Qe5 {[%clk 0:02:43.2]} 22. Rae1 {[%clk 0:00:57.4]}
22... Rad8 {[%clk 0:02:40.7]} 23. Qe2 {[%clk 0:00:55.3]} 23... Rfe8 {[%clk
0:02:37]} 24. Qg4 {[%clk 0:00:43.6]} 24... Kg8 {[%clk 0:02:27.7]} 25. b3 {[%clk
0:00:40.5]} 25... Ba5 {[%clk 0:01:51.2]} 26. Re2 {[%clk 0:00:28]} 26... Bc3
{[%clk 0:01:51.6]} 27. Nh5 {[%clk 0:00:21.9]} 27... Rf8 {[%clk 0:01:44.3]} 28.
Ref2 {[%clk 0:00:13.4]} 28... Rxf2 {[%clk 0:01:38.9]} 29. Rxf2 {[%clk
0:00:14.3]} 29... Qe7 {[%clk 0:01:24.1]} 30. Qf5 {[%clk 0:00:08.9]} 30... Be5
{[%clk 0:01:18.7]} 31. Kg2 {[%clk 0:00:08.2]} 31... g6 {[%clk 0:01:08.3]} 32.
Qg4 {[%clk 0:00:07.7]} 32... Kh8 {[%clk 0:01:02.7]} 33. Nf4 {[%clk 0:00:07.1]}
33... Re8 {[%clk 0:00:45.2]} 34. Nh3 {[%clk 0:00:06]} 34... Bg7 {[%clk
0:00:44.2]} 35. Re2 {[%clk 0:00:05.9]} 35... d5 {[%clk 0:00:39.3]} 36. cxd5
{[%clk 0:00:04.2]} 36... cxd5 {[%clk 0:00:39.8]} 37. Ng5 {[%clk 0:00:04.8]}
37... h6 {[%clk 0:00:34.5]} 38. Qh4 {[%clk 0:00:03.8]} 38... Qxg5 {[%clk
0:00:33.3]} 39. Qxg5 {[%clk 0:00:03.2]} 39... hxg5 {[%clk 0:00:34.2]} 0-1

[Event "Late-Titled-Tuesday-Blitz-October-03-2023"]
[Site "Chess.com"]
[Date "2023.10.03"]
[Round "5"]
[White "StarkyNZ"]
[Black "TheoSlade"]
[Result "1/2-1/2"]
[WhiteElo "2324"]
[BlackElo "2508"]
[TimeControl "180+1"]
[EndTime "14:53:47 PDT"]
[Termination "Game drawn - insufficient material"]

1. c4 {[%clk 0:02:56.4]} 1... e6 {[%clk 0:03:00.4]} 2. d4 {[%clk 0:02:55.9]}
2... d5 {[%clk 0:03:00.6]} 3. Nc3 {[%clk 0:02:53.5]} 3... a6 {[%clk 0:03:00]} 4.
cxd5 {[%clk 0:02:53.6]} 4... exd5 {[%clk 0:03:00.9]} 5. Bf4 {[%clk 0:02:53.6]}
5... Nf6 {[%clk 0:02:59.6]} 6. Nf3 {[%clk 0:02:53.5]} 6... c5 {[%clk 0:02:55.6]}
7. e3 {[%clk 0:02:50.8]} 7... c4 {[%clk 0:02:55.8]} 8. Bg5 {[%clk 0:02:49.4]}
8... Be7 {[%clk 0:02:52.4]} 9. g3 {[%clk 0:02:42.3]} 9... O-O {[%clk 0:02:41.6]}
10. Bg2 {[%clk 0:02:42.5]} 10... Be6 {[%clk 0:02:39.2]} 11. O-O {[%clk
0:02:40.9]} 11... h6 {[%clk 0:02:37.1]} 12. Bxf6 {[%clk 0:02:40.6]} 12... Bxf6
{[%clk 0:02:38]} 13. e4 {[%clk 0:02:40.6]} 13... dxe4 {[%clk 0:02:32.5]} 14.
Nxe4 {[%clk 0:02:40.5]} 14... Bd5 {[%clk 0:02:21.1]} 15. Ne5 {[%clk 0:02:35.6]}
15... Bxe5 {[%clk 0:02:05.8]} 16. dxe5 {[%clk 0:02:32.5]} 16... Bxe4 {[%clk
0:01:52.3]} 17. Bxe4 {[%clk 0:02:33.4]} 17... Qe7 {[%clk 0:01:47.2]} 18. f4
{[%clk 0:02:07.9]} 18... Nc6 {[%clk 0:01:46.8]} 19. Bxc6 {[%clk 0:02:00.7]}
19... Qc5+ {[%clk 0:01:46.5]} 20. Kg2 {[%clk 0:01:57.6]} 20... Qxc6+ {[%clk
0:01:47]} 21. Qf3 {[%clk 0:01:58.2]} 21... Qxf3+ {[%clk 0:01:42.1]} 22. Kxf3
{[%clk 0:01:58.8]} 22... Rfd8 {[%clk 0:01:41.1]} 23. Rfd1 {[%clk 0:01:58.8]}
23... Kf8 {[%clk 0:01:38]} 24. Ke4 {[%clk 0:01:58.1]} 24... Ke7 {[%clk
0:01:38.1]} 25. a4 {[%clk 0:01:57.9]} 25... g6 {[%clk 0:01:36.6]} 26. Rac1
{[%clk 0:01:54.7]} 26... b5 {[%clk 0:01:35.1]} 27. g4 {[%clk 0:01:31.4]} 27...
Rab8 {[%clk 0:01:32.9]} 28. axb5 {[%clk 0:01:25]} 28... Rxd1 {[%clk 0:01:20]}
29. Rxd1 {[%clk 0:01:24.8]} 29... Rxb5 {[%clk 0:01:20.7]} 30. Rd2 {[%clk
0:01:15.3]} 30... Rb4 {[%clk 0:01:21]} 31. Kd5 {[%clk 0:00:57.3]} 31... c3
{[%clk 0:01:16.7]} 32. bxc3 {[%clk 0:00:57.3]} 32... Rxf4 {[%clk 0:01:17.3]} 33.
Ra2 {[%clk 0:00:50.1]} 33... Rxg4 {[%clk 0:01:17.4]} 34. Rxa6 {[%clk 0:00:50.3]}
34... Rg2 {[%clk 0:01:15.3]} 35. Ra7+ {[%clk 0:00:48.5]} 35... Ke8 {[%clk
0:01:07.1]} 36. Ra8+ {[%clk 0:00:44.6]} 36... Ke7 {[%clk 0:01:06.4]} 37. Ra7+
{[%clk 0:00:44.9]} 37... Kf8 {[%clk 0:01:07.1]} 38. e6 {[%clk 0:00:38.6]} 38...
fxe6+ {[%clk 0:01:04.8]} 39. Kxe6 {[%clk 0:00:38.6]} 39... g5 {[%clk 0:00:58.7]}
40. Kf6 {[%clk 0:00:36]} 40... Ke8 {[%clk 0:00:59.2]} 41. h4 {[%clk 0:00:27]}
41... gxh4 {[%clk 0:00:54.7]} 42. Ra4 {[%clk 0:00:27.2]} 42... h3 {[%clk
0:00:52.1]} 43. Rh4 {[%clk 0:00:27.3]} 43... h2 {[%clk 0:00:52.4]} 44. Rxh6
{[%clk 0:00:25.7]} 44... Kd7 {[%clk 0:00:52.5]} 45. Kf5 {[%clk 0:00:24.3]} 45...
Rc2 {[%clk 0:00:48.2]} 46. Ke4 {[%clk 0:00:21.4]} 46... Rxc3 {[%clk 0:00:43.7]}
47. Rxh2 {[%clk 0:00:21.2]} 47... Rc5 {[%clk 0:00:43.9]} 48. Rh7+ {[%clk
0:00:21.1]} 48... Ke6 {[%clk 0:00:43.9]} 49. Rh6+ {[%clk 0:00:21.6]} 49... Kf7
{[%clk 0:00:44.2]} 50. Rh7+ {[%clk 0:00:22.1]} 50... Kg6 {[%clk 0:00:43.9]} 51.
Rd7 {[%clk 0:00:22.2]} 51... Rc4+ {[%clk 0:00:42.8]} 52. Rd4 {[%clk 0:00:22.6]}
52... Rc5 {[%clk 0:00:42.5]} 53. Rd5 {[%clk 0:00:23]} 53... Rc6 {[%clk
0:00:43.1]} 54. Ke5 {[%clk 0:00:22.6]} 54... Rf6 {[%clk 0:00:41.6]} 55. Rd6
{[%clk 0:00:22.5]} 55... Rxd6 {[%clk 0:00:41.3]} 56. Kxd6 {[%clk 0:00:22.1]}
1/2-1/2